{"text_format":"3","workbook":"xlsx","n_sheets":2,"sheets":["Budžet za venčanje","Detalji o budžetu"],"not_rendered":{"charts":1,"images":1,"defined_names":2},"read":"whole","date_system":"1900"}

{"sheet":"Budžet za venčanje","index":0,"n_rows":16,"n_cols":16,"rows_kept":16,"merged":[[1,1,1,5]]}
[{"$nulls":6}," "]
[null,"LIDIJA + DANIJEL\nVENČANJE"]
[{"$nulls":7}," "]
[]
[null,"KATEGORIJA","PROCENJENI TROŠKOVI","STVARNI TROŠKOVI","ODSTUPANJE","PROCENAT BUDŽETA",{"$nulls":3},"Nije sortirano","Procenjeni troškovi","Stvarni troškovi","Procenjeni troškovi – stepen vrednosti","Stepen","#","Sortirano"]
[null,{"$f":"P6","v":"Prijem"},{"$f":"VLOOKUP(TBL_Rezime[[#This Row],[KATEGORIJA]],TBL_RangiranjePodataka,2,FALSE)","v":{"v":14500,"d":"14,500 RSD"}},{"$f":"IF(VLOOKUP(TBL_Rezime[[#This Row],[KATEGORIJA]],TBL_RangiranjePodataka,3,FALSE)=0,\"\",VLOOKUP(TBL_Rezime[[#This Row],[KATEGORIJA]],TBL_RangiranjePodataka,3,FALSE))","v":{"v":12800,"d":"12,800 RSD"}},{"$f":"IF(OR(TBL_Rezime[[#This Row],[PROCENJENI TROŠKOVI]]=\"\",TBL_Rezime[[#This Row],[STVARNI TROŠKOVI]]=\"\"),\"\",TBL_Rezime[[#This Row],[PROCENJENI TROŠKOVI]]-TBL_Rezime[[#This Row],[STVARNI TROŠKOVI]])","v":{"v":1700,"d":"1,700 RSD"}},{"$f":"TBL_Rezime[[#This Row],[PROCENJENI TROŠKOVI]]/SUM(TBL_Rezime[PROCENJENI TROŠKOVI])","v":{"v":0.48739495798319327,"d":"48.7%"}},{"$nulls":3},"Prijem",{"$f":"TBL_Prijem[[#Totals],[PROCENJENO]]","v":14500},{"$f":"TBL_Prijem[[#Totals],[STVARNO]]","v":12800},{"$f":"K6-O6/100","v":14499.99},{"$f":"_xlfn.RANK.AVG(M6,$M$6:$M$15)","v":1},1,{"$f":"INDEX(TBL_RangiranjePodataka,MATCH(O6,$N$6:$N$15,0),1)","v":"Prijem"}]
[null,{"$f":"P7","v":"Svečano odelo"},{"$f":"VLOOKUP(TBL_Rezime[[#This Row],[KATEGORIJA]],TBL_RangiranjePodataka,2,FALSE)","v":{"v":4000,"d":"4,000 RSD"}},{"$f":"IF(VLOOKUP(TBL_Rezime[[#This Row],[KATEGORIJA]],TBL_RangiranjePodataka,3,FALSE)=0,\"\",VLOOKUP(TBL_Rezime[[#This Row],[KATEGORIJA]],TBL_RangiranjePodataka,3,FALSE))","v":{"v":2900,"d":"2,900 RSD"}},{"$f":"IF(OR(TBL_Rezime[[#This Row],[PROCENJENI TROŠKOVI]]=\"\",TBL_Rezime[[#This Row],[STVARNI TROŠKOVI]]=\"\"),\"\",TBL_Rezime[[#This Row],[PROCENJENI TROŠKOVI]]-TBL_Rezime[[#This Row],[STVARNI TROŠKOVI]])","v":{"v":1100,"d":"1,100 RSD"}},{"$f":"TBL_Rezime[[#This Row],[PROCENJENI TROŠKOVI]]/SUM(TBL_Rezime[PROCENJENI TROŠKOVI])","v":{"v":0.13445378151260504,"d":"13.4%"}},{"$nulls":3},"Svečano odelo",{"$f":"TBL_SvečanoOdelo[[#Totals],[PROCENJENO]]","v":4000},{"$f":"TBL_SvečanoOdelo[[#Totals],[STVARNO]]","v":2900},{"$f":"K7-O7/100","v":3999.98},2,2,"Svečano odelo"]
[null,"Cveće i ukrasi",{"$f":"VLOOKUP(TBL_Rezime[[#This Row],[KATEGORIJA]],TBL_RangiranjePodataka,2,FALSE)","v":{"v":3000,"d":"3,000 RSD"}},{"$f":"IF(VLOOKUP(TBL_Rezime[[#This Row],[KATEGORIJA]],TBL_RangiranjePodataka,3,FALSE)=0,\"\",VLOOKUP(TBL_Rezime[[#This Row],[KATEGORIJA]],TBL_RangiranjePodataka,3,FALSE))","v":""},{"$f":"IF(OR(TBL_Rezime[[#This Row],[PROCENJENI TROŠKOVI]]=\"\",TBL_Rezime[[#This Row],[STVARNI TROŠKOVI]]=\"\"),\"\",TBL_Rezime[[#This Row],[PROCENJENI TROŠKOVI]]-TBL_Rezime[[#This Row],[STVARNI TROŠKOVI]])","v":""},{"$f":"TBL_Rezime[[#This Row],[PROCENJENI TROŠKOVI]]/SUM(TBL_Rezime[PROCENJENI TROŠKOVI])","v":{"v":0.10084033613445378,"d":"10.1%"}},{"$nulls":3},"Cveće i ukrasi",{"$f":"TBL_CvećeIUkrasi[[#Totals],[PROCENJENO]]","v":3000},{"$f":"TBL_CvećeIUkrasi[[#Totals],[STVARNO]]","v":0},2999.97,3,3,"Cveće i ukrasi"]
[null,"Fotografije i video",{"$f":"VLOOKUP(TBL_Rezime[[#This Row],[KATEGORIJA]],TBL_RangiranjePodataka,2,FALSE)","v":{"v":2500,"d":"2,500 RSD"}},{"$f":"IF(VLOOKUP(TBL_Rezime[[#This Row],[KATEGORIJA]],TBL_RangiranjePodataka,3,FALSE)=0,\"\",VLOOKUP(TBL_Rezime[[#This Row],[KATEGORIJA]],TBL_RangiranjePodataka,3,FALSE))","v":""},{"$f":"IF(OR(TBL_Rezime[[#This Row],[PROCENJENI TROŠKOVI]]=\"\",TBL_Rezime[[#This Row],[STVARNI TROŠKOVI]]=\"\"),\"\",TBL_Rezime[[#This Row],[PROCENJENI TROŠKOVI]]-TBL_Rezime[[#This Row],[STVARNI TROŠKOVI]])","v":""},{"$f":"TBL_Rezime[[#This Row],[PROCENJENI TROŠKOVI]]/SUM(TBL_Rezime[PROCENJENI TROŠKOVI])","v":{"v":0.08403361344537816,"d":"8.4%"}},{"$nulls":3},"Muzika",{"$f":"TBL_Muzika[[#Totals],[PROCENJENO]]","v":1800},{"$f":"TBL_Muzika[[#Totals],[STVARNO]]","v":0},1799.96,5,4,"Fotografije i video"]
[null,"Muzika",{"$f":"VLOOKUP(TBL_Rezime[[#This Row],[KATEGORIJA]],TBL_RangiranjePodataka,2,FALSE)","v":{"v":1800,"d":"1,800 RSD"}},{"$f":"IF(VLOOKUP(TBL_Rezime[[#This Row],[KATEGORIJA]],TBL_RangiranjePodataka,3,FALSE)=0,\"\",VLOOKUP(TBL_Rezime[[#This Row],[KATEGORIJA]],TBL_RangiranjePodataka,3,FALSE))","v":""},{"$f":"IF(OR(TBL_Rezime[[#This Row],[PROCENJENI TROŠKOVI]]=\"\",TBL_Rezime[[#This Row],[STVARNI TROŠKOVI]]=\"\"),\"\",TBL_Rezime[[#This Row],[PROCENJENI TROŠKOVI]]-TBL_Rezime[[#This Row],[STVARNI TROŠKOVI]])","v":""},{"$f":"TBL_Rezime[[#This Row],[PROCENJENI TROŠKOVI]]/SUM(TBL_Rezime[PROCENJENI TROŠKOVI])","v":{"v":0.06050420168067227,"d":"6.1%"}},{"$nulls":3},"Fotografije i video",{"$f":"TBL_FotografijeIVideoZapisi[[#Totals],[PROCENJENO]]","v":2500},{"$f":"TBL_FotografijeIVideoZapisi[[#Totals],[STVARNO]]","v":0},2499.95,4,5,"Muzika"]
[null,"Usluge i pokloni",{"$f":"VLOOKUP(TBL_Rezime[[#This Row],[KATEGORIJA]],TBL_RangiranjePodataka,2,FALSE)","v":{"v":1100,"d":"1,100 RSD"}},{"$f":"IF(VLOOKUP(TBL_Rezime[[#This Row],[KATEGORIJA]],TBL_RangiranjePodataka,3,FALSE)=0,\"\",VLOOKUP(TBL_Rezime[[#This Row],[KATEGORIJA]],TBL_RangiranjePodataka,3,FALSE))","v":""},{"$f":"IF(OR(TBL_Rezime[[#This Row],[PROCENJENI TROŠKOVI]]=\"\",TBL_Rezime[[#This Row],[STVARNI TROŠKOVI]]=\"\"),\"\",TBL_Rezime[[#This Row],[PROCENJENI TROŠKOVI]]-TBL_Rezime[[#This Row],[STVARNI TROŠKOVI]])","v":""},{"$f":"TBL_Rezime[[#This Row],[PROCENJENI TROŠKOVI]]/SUM(TBL_Rezime[PROCENJENI TROŠKOVI])","v":{"v":0.03697478991596639,"d":"3.7%"}},{"$nulls":3},"Usluge i pokloni",{"$f":"TBL_SuveniriIPokloni[[#Totals],[PROCENJENO]]","v":1100},{"$f":"TBL_SuveniriIPokloni[[#Totals],[STVARNO]]","v":0},1099.94,6,6,"Usluge i pokloni"]
[null,{"$f":"P12","v":"Burme"},{"$f":"VLOOKUP(TBL_Rezime[[#This Row],[KATEGORIJA]],TBL_RangiranjePodataka,2,FALSE)","v":{"v":1100,"d":"1,100 RSD"}},{"$f":"IF(VLOOKUP(TBL_Rezime[[#This Row],[KATEGORIJA]],TBL_RangiranjePodataka,3,FALSE)=0,\"\",VLOOKUP(TBL_Rezime[[#This Row],[KATEGORIJA]],TBL_RangiranjePodataka,3,FALSE))","v":""},{"$f":"IF(OR(TBL_Rezime[[#This Row],[PROCENJENI TROŠKOVI]]=\"\",TBL_Rezime[[#This Row],[STVARNI TROŠKOVI]]=\"\"),\"\",TBL_Rezime[[#This Row],[PROCENJENI TROŠKOVI]]-TBL_Rezime[[#This Row],[STVARNI TROŠKOVI]])","v":""},{"$f":"TBL_Rezime[[#This Row],[PROCENJENI TROŠKOVI]]/SUM(TBL_Rezime[PROCENJENI TROŠKOVI])","v":{"v":0.03697478991596639,"d":"3.7%"}},{"$nulls":3},"Ceremonija",{"$f":"TBL_Ceremonija[[#Totals],[PROCENJENO]]","v":800},{"$f":"TBL_Ceremonija[[#Totals],[STVARNO]]","v":0},799.93,8,7,"Burme"]
[null,"Ceremonija",{"$f":"VLOOKUP(TBL_Rezime[[#This Row],[KATEGORIJA]],TBL_RangiranjePodataka,2,FALSE)","v":{"v":800,"d":"800 RSD"}},{"$f":"IF(VLOOKUP(TBL_Rezime[[#This Row],[KATEGORIJA]],TBL_RangiranjePodataka,3,FALSE)=0,\"\",VLOOKUP(TBL_Rezime[[#This Row],[KATEGORIJA]],TBL_RangiranjePodataka,3,FALSE))","v":""},{"$f":"IF(OR(TBL_Rezime[[#This Row],[PROCENJENI TROŠKOVI]]=\"\",TBL_Rezime[[#This Row],[STVARNI TROŠKOVI]]=\"\"),\"\",TBL_Rezime[[#This Row],[PROCENJENI TROŠKOVI]]-TBL_Rezime[[#This Row],[STVARNI TROŠKOVI]])","v":""},{"$f":"TBL_Rezime[[#This Row],[PROCENJENI TROŠKOVI]]/SUM(TBL_Rezime[PROCENJENI TROŠKOVI])","v":{"v":0.02689075630252101,"d":"2.7%"}},{"$nulls":3},"Podloga za pisanje",{"$f":"TBL_Pribor[[#Totals],[PROCENJENO]]","v":500},{"$f":"TBL_Pribor[[#Totals],[STVARNO]]","v":0},499.92,9,8,"Ceremonija"]
[null,"Podloga za pisanje",{"$f":"VLOOKUP(TBL_Rezime[[#This Row],[KATEGORIJA]],TBL_RangiranjePodataka,2,FALSE)","v":{"v":500,"d":"500 RSD"}},{"$f":"IF(VLOOKUP(TBL_Rezime[[#This Row],[KATEGORIJA]],TBL_RangiranjePodataka,3,FALSE)=0,\"\",VLOOKUP(TBL_Rezime[[#This Row],[KATEGORIJA]],TBL_RangiranjePodataka,3,FALSE))","v":""},{"$f":"IF(OR(TBL_Rezime[[#This Row],[PROCENJENI TROŠKOVI]]=\"\",TBL_Rezime[[#This Row],[STVARNI TROŠKOVI]]=\"\"),\"\",TBL_Rezime[[#This Row],[PROCENJENI TROŠKOVI]]-TBL_Rezime[[#This Row],[STVARNI TROŠKOVI]])","v":""},{"$f":"TBL_Rezime[[#This Row],[PROCENJENI TROŠKOVI]]/SUM(TBL_Rezime[PROCENJENI TROŠKOVI])","v":{"v":0.01680672268907563,"d":"1.7%"}},{"$nulls":3},"Burme",{"$f":"TBL_Burme[[#Totals],[PROCENJENO]]","v":1100},{"$f":"TBL_Burme[[#Totals],[STVARNO]]","v":0},1099.91,7,9,"Podloga za pisanje"]
[null,"Prevoz",{"$f":"VLOOKUP(TBL_Rezime[[#This Row],[KATEGORIJA]],TBL_RangiranjePodataka,2,FALSE)","v":{"v":450,"d":"450 RSD"}},{"$f":"IF(VLOOKUP(TBL_Rezime[[#This Row],[KATEGORIJA]],TBL_RangiranjePodataka,3,FALSE)=0,\"\",VLOOKUP(TBL_Rezime[[#This Row],[KATEGORIJA]],TBL_RangiranjePodataka,3,FALSE))","v":""},{"$f":"IF(OR(TBL_Rezime[[#This Row],[PROCENJENI TROŠKOVI]]=\"\",TBL_Rezime[[#This Row],[STVARNI TROŠKOVI]]=\"\"),\"\",TBL_Rezime[[#This Row],[PROCENJENI TROŠKOVI]]-TBL_Rezime[[#This Row],[STVARNI TROŠKOVI]])","v":""},{"$f":"TBL_Rezime[[#This Row],[PROCENJENI TROŠKOVI]]/SUM(TBL_Rezime[PROCENJENI TROŠKOVI])","v":{"v":0.015126050420168067,"d":"1.5%"}},{"$nulls":3},"Prevoz",{"$f":"TBL_Prevoz[[#Totals],[PROCENJENO]]","v":450},{"$f":"TBL_Prevoz[[#Totals],[STVARNO]]","v":0},449.9,10,10,"Prevoz"]
[null,"Zbir",{"$f":"SUBTOTAL(109,TBL_Rezime[PROCENJENI TROŠKOVI])","v":{"v":29750,"d":"29,750 RSD"}},{"$f":"SUBTOTAL(109,TBL_Rezime[STVARNI TROŠKOVI])","v":{"v":15700,"d":"15,700 RSD"}},{"$f":"TBL_Rezime[[#Totals],[PROCENJENI TROŠKOVI]]-TBL_Rezime[[#Totals],[STVARNI TROŠKOVI]]","v":{"v":14050,"d":"14,050 RSD"}},{"$f":"SUBTOTAL(109,TBL_Rezime[PROCENAT BUDŽETA])","v":{"v":1,"d":"100%"}}]

{"sheet":"Detalji o budžetu","index":1,"n_rows":91,"n_cols":6,"rows_kept":91}
[{"$nulls":5}," "]
[null,"DETALJI O BUDŽETU"]
[]
[null,"PRIJEM","PROCENJENO","STVARNO","ODSTUPANJE"]
[null,"Mesto i iznajmljivanje",{"v":8000,"d":"8,000 RSD"},{"v":7800,"d":"7,800 RSD"},{"$f":"IF(OR(TBL_Prijem[[#This Row],[PROCENJENO]]=\"\",TBL_Prijem[[#This Row],[STVARNO]]=\"\"),\"\",TBL_Prijem[[#This Row],[PROCENJENO]]-TBL_Prijem[[#This Row],[STVARNO]])","v":{"v":200,"d":"200 RSD"}}]
[null,"Hrana i usluga",{"v":4000,"d":"4,000 RSD"},{"v":4200,"d":"4,200 RSD"},{"$f":"IF(OR(TBL_Prijem[[#This Row],[PROCENJENO]]=\"\",TBL_Prijem[[#This Row],[STVARNO]]=\"\"),\"\",TBL_Prijem[[#This Row],[PROCENJENO]]-TBL_Prijem[[#This Row],[STVARNO]])","v":{"v":-200,"d":"-200 RSD"}}]
[null,"Pića",{"v":1000,"d":"1,000 RSD"},{"v":800,"d":"800 RSD"},{"$f":"IF(OR(TBL_Prijem[[#This Row],[PROCENJENO]]=\"\",TBL_Prijem[[#This Row],[STVARNO]]=\"\"),\"\",TBL_Prijem[[#This Row],[PROCENJENO]]-TBL_Prijem[[#This Row],[STVARNO]])","v":{"v":200,"d":"200 RSD"}}]
[null,"Torta",{"v":1000,"d":"1,000 RSD"},null,{"$f":"IF(OR(TBL_Prijem[[#This Row],[PROCENJENO]]=\"\",TBL_Prijem[[#This Row],[STVARNO]]=\"\"),\"\",TBL_Prijem[[#This Row],[PROCENJENO]]-TBL_Prijem[[#This Row],[STVARNO]])","v":""}]
[null,"Razni troškovi",{"v":500,"d":"500 RSD"},null,{"$f":"IF(OR(TBL_Prijem[[#This Row],[PROCENJENO]]=\"\",TBL_Prijem[[#This Row],[STVARNO]]=\"\"),\"\",TBL_Prijem[[#This Row],[PROCENJENO]]-TBL_Prijem[[#This Row],[STVARNO]])","v":""}]
[null,"UKUPNO ZA PRIJEM",{"$f":"SUBTOTAL(109,TBL_Prijem[PROCENJENO])","v":{"v":14500,"d":"14,500 RSD"}},{"$f":"SUBTOTAL(109,TBL_Prijem[STVARNO])","v":{"v":12800,"d":"12,800 RSD"}},{"$f":"TBL_Prijem[[#Totals],[PROCENJENO]]-TBL_Prijem[[#Totals],[STVARNO]]","v":{"v":1700,"d":"1,700 RSD"}}]
[]
[]
[null,"SVEČANO ODELO","PROCENJENO","STVARNO","ODSTUPANJE"]
[null,"Smoking, odelo i/ili haljine",{"v":3000,"d":"3,000 RSD"},{"v":2900,"d":"2,900 RSD"},{"$f":"IF(OR(TBL_SvečanoOdelo[[#This Row],[PROCENJENO]]=\"\",TBL_SvečanoOdelo[[#This Row],[STVARNO]]=\"\"),\"\",TBL_SvečanoOdelo[[#This Row],[PROCENJENO]]-TBL_SvečanoOdelo[[#This Row],[STVARNO]])","v":{"v":100,"d":"100 RSD"}}]
[null,"Prepravke",{"v":100,"d":"100 RSD"},null,{"$f":"IF(OR(TBL_SvečanoOdelo[[#This Row],[PROCENJENO]]=\"\",TBL_SvečanoOdelo[[#This Row],[STVARNO]]=\"\"),\"\",TBL_SvečanoOdelo[[#This Row],[PROCENJENO]]-TBL_SvečanoOdelo[[#This Row],[STVARNO]])","v":""}]
[null,"Tijara i veo",{"v":200,"d":"200 RSD"},null,{"$f":"IF(OR(TBL_SvečanoOdelo[[#This Row],[PROCENJENO]]=\"\",TBL_SvečanoOdelo[[#This Row],[STVARNO]]=\"\"),\"\",TBL_SvečanoOdelo[[#This Row],[PROCENJENO]]-TBL_SvečanoOdelo[[#This Row],[STVARNO]])","v":""}]
[null,"Modni dodaci",{"v":100,"d":"100 RSD"},null,{"$f":"IF(OR(TBL_SvečanoOdelo[[#This Row],[PROCENJENO]]=\"\",TBL_SvečanoOdelo[[#This Row],[STVARNO]]=\"\"),\"\",TBL_SvečanoOdelo[[#This Row],[PROCENJENO]]-TBL_SvečanoOdelo[[#This Row],[STVARNO]])","v":""}]
[null,"Frizura i šminka",{"v":500,"d":"500 RSD"},null,{"$f":"IF(OR(TBL_SvečanoOdelo[[#This Row],[PROCENJENO]]=\"\",TBL_SvečanoOdelo[[#This Row],[STVARNO]]=\"\"),\"\",TBL_SvečanoOdelo[[#This Row],[PROCENJENO]]-TBL_SvečanoOdelo[[#This Row],[STVARNO]])","v":""}]
[null,"Razni troškovi",{"v":100,"d":"100 RSD"},null,{"$f":"IF(OR(TBL_SvečanoOdelo[[#This Row],[PROCENJENO]]=\"\",TBL_SvečanoOdelo[[#This Row],[STVARNO]]=\"\"),\"\",TBL_SvečanoOdelo[[#This Row],[PROCENJENO]]-TBL_SvečanoOdelo[[#This Row],[STVARNO]])","v":""}]
[null,"UKUPNO ZA SVEČANO ODELO",{"$f":"SUBTOTAL(109,TBL_SvečanoOdelo[PROCENJENO])","v":{"v":4000,"d":"4,000 RSD"}},{"$f":"SUBTOTAL(109,TBL_SvečanoOdelo[STVARNO])","v":{"v":2900,"d":"2,900 RSD"}},{"$f":"TBL_SvečanoOdelo[[#Totals],[PROCENJENO]]-TBL_SvečanoOdelo[[#Totals],[STVARNO]]","v":{"v":1100,"d":"1,100 RSD"}}]
[]
[]
[null,"CVEĆE I UKRASI","PROCENJENO","STVARNO","ODSTUPANJE"]
[null,"Cvetni aranžmani za ceremoniju",{"v":1000,"d":"1,000 RSD"},null,{"$f":"IF(OR(TBL_CvećeIUkrasi[[#This Row],[PROCENJENO]]=\"\",TBL_CvećeIUkrasi[[#This Row],[STVARNO]]=\"\"),\"\",TBL_CvećeIUkrasi[[#This Row],[PROCENJENO]]-TBL_CvećeIUkrasi[[#This Row],[STVARNO]])","v":""}]
[null,"Cvetni pupoljci i korpa za devojčicu koja nosi cveće",{"v":500,"d":"500 RSD"},null,{"$f":"IF(OR(TBL_CvećeIUkrasi[[#This Row],[PROCENJENO]]=\"\",TBL_CvećeIUkrasi[[#This Row],[STVARNO]]=\"\"),\"\",TBL_CvećeIUkrasi[[#This Row],[PROCENJENO]]-TBL_CvećeIUkrasi[[#This Row],[STVARNO]])","v":""}]
[null,"Jastučić za burme",{"v":100,"d":"100 RSD"},null,{"$f":"IF(OR(TBL_CvećeIUkrasi[[#This Row],[PROCENJENO]]=\"\",TBL_CvećeIUkrasi[[#This Row],[STVARNO]]=\"\"),\"\",TBL_CvećeIUkrasi[[#This Row],[PROCENJENO]]-TBL_CvećeIUkrasi[[#This Row],[STVARNO]])","v":""}]
[null,"Buketi",{"v":500,"d":"500 RSD"},null,{"$f":"IF(OR(TBL_CvećeIUkrasi[[#This Row],[PROCENJENO]]=\"\",TBL_CvećeIUkrasi[[#This Row],[STVARNO]]=\"\"),\"\",TBL_CvećeIUkrasi[[#This Row],[PROCENJENO]]-TBL_CvećeIUkrasi[[#This Row],[STVARNO]])","v":""}]
[null,"Kićenje",{"v":100,"d":"100 RSD"},null,{"$f":"IF(OR(TBL_CvećeIUkrasi[[#This Row],[PROCENJENO]]=\"\",TBL_CvećeIUkrasi[[#This Row],[STVARNO]]=\"\"),\"\",TBL_CvećeIUkrasi[[#This Row],[PROCENJENO]]-TBL_CvećeIUkrasi[[#This Row],[STVARNO]])","v":""}]
[null,"Korseti",{"v":200,"d":"200 RSD"},null,{"$f":"IF(OR(TBL_CvećeIUkrasi[[#This Row],[PROCENJENO]]=\"\",TBL_CvećeIUkrasi[[#This Row],[STVARNO]]=\"\"),\"\",TBL_CvećeIUkrasi[[#This Row],[PROCENJENO]]-TBL_CvećeIUkrasi[[#This Row],[STVARNO]])","v":""}]
[null,"Prijemni ukrasi",{"v":300,"d":"300 RSD"},null,{"$f":"IF(OR(TBL_CvećeIUkrasi[[#This Row],[PROCENJENO]]=\"\",TBL_CvećeIUkrasi[[#This Row],[STVARNO]]=\"\"),\"\",TBL_CvećeIUkrasi[[#This Row],[PROCENJENO]]-TBL_CvećeIUkrasi[[#This Row],[STVARNO]])","v":""}]
[null,"Rasveta",{"v":200,"d":"200 RSD"},null,{"$f":"IF(OR(TBL_CvećeIUkrasi[[#This Row],[PROCENJENO]]=\"\",TBL_CvećeIUkrasi[[#This Row],[STVARNO]]=\"\"),\"\",TBL_CvećeIUkrasi[[#This Row],[PROCENJENO]]-TBL_CvećeIUkrasi[[#This Row],[STVARNO]])","v":""}]
[null,"Razni troškovi",{"v":100,"d":"100 RSD"},null,{"$f":"IF(OR(TBL_CvećeIUkrasi[[#This Row],[PROCENJENO]]=\"\",TBL_CvećeIUkrasi[[#This Row],[STVARNO]]=\"\"),\"\",TBL_CvećeIUkrasi[[#This Row],[PROCENJENO]]-TBL_CvećeIUkrasi[[#This Row],[STVARNO]])","v":""}]
[null,"UKUPNO ZA CVEĆE I UKRASE",{"$f":"SUBTOTAL(109,TBL_CvećeIUkrasi[PROCENJENO])","v":{"v":3000,"d":"3,000 RSD"}},{"$f":"SUBTOTAL(109,TBL_CvećeIUkrasi[STVARNO])","v":{"v":0,"d":"0 RSD"}},{"$f":"TBL_CvećeIUkrasi[[#Totals],[PROCENJENO]]-TBL_CvećeIUkrasi[[#Totals],[STVARNO]]","v":{"v":3000,"d":"3,000 RSD"}}]
[]
[]
[null,"MUZIKA","PROCENJENO","STVARNO","ODSTUPANJE"]
[null,"Muzičari za ceremoniju",{"v":700,"d":"700 RSD"},null,{"$f":"IF(OR(TBL_Muzika[[#This Row],[PROCENJENO]]=\"\",TBL_Muzika[[#This Row],[STVARNO]]=\"\"),\"\",TBL_Muzika[[#This Row],[PROCENJENO]]-TBL_Muzika[[#This Row],[STVARNO]])","v":""}]
[null,"Muzičari za koktel čas",{"v":300,"d":"300 RSD"},null,{"$f":"IF(OR(TBL_Muzika[[#This Row],[PROCENJENO]]=\"\",TBL_Muzika[[#This Row],[STVARNO]]=\"\"),\"\",TBL_Muzika[[#This Row],[PROCENJENO]]-TBL_Muzika[[#This Row],[STVARNO]])","v":""}]
[null,"Bend na prijemu, di džej ili zabava",{"v":200,"d":"200 RSD"},null,{"$f":"IF(OR(TBL_Muzika[[#This Row],[PROCENJENO]]=\"\",TBL_Muzika[[#This Row],[STVARNO]]=\"\"),\"\",TBL_Muzika[[#This Row],[PROCENJENO]]-TBL_Muzika[[#This Row],[STVARNO]])","v":""}]
[null,"Ozvučenje ili iznajmljivanje podijuma za igru",{"v":400,"d":"400 RSD"},null,{"$f":"IF(OR(TBL_Muzika[[#This Row],[PROCENJENO]]=\"\",TBL_Muzika[[#This Row],[STVARNO]]=\"\"),\"\",TBL_Muzika[[#This Row],[PROCENJENO]]-TBL_Muzika[[#This Row],[STVARNO]])","v":""}]
[null,"Razni troškovi",{"v":200,"d":"200 RSD"},null,{"$f":"IF(OR(TBL_Muzika[[#This Row],[PROCENJENO]]=\"\",TBL_Muzika[[#This Row],[STVARNO]]=\"\"),\"\",TBL_Muzika[[#This Row],[PROCENJENO]]-TBL_Muzika[[#This Row],[STVARNO]])","v":""}]
[null,"UKUPNO ZA MUZIKU",{"$f":"SUBTOTAL(109,TBL_Muzika[PROCENJENO])","v":{"v":1800,"d":"1,800 RSD"}},{"$f":"SUBTOTAL(109,TBL_Muzika[STVARNO])","v":{"v":0,"d":"0 RSD"}},{"$f":"TBL_Muzika[[#Totals],[PROCENJENO]]-TBL_Muzika[[#Totals],[STVARNO]]","v":{"v":1800,"d":"1,800 RSD"}}]
[]
[]
[null,"FOTOGRAFIJE I VIDEO ZAPISI","PROCENJENO","STVARNO","ODSTUPANJE"]
[null,"Fotografije",{"v":1000,"d":"1,000 RSD"},null,{"$f":"IF(OR(TBL_FotografijeIVideoZapisi[[#This Row],[PROCENJENO]]=\"\",TBL_FotografijeIVideoZapisi[[#This Row],[STVARNO]]=\"\"),\"\",TBL_FotografijeIVideoZapisi[[#This Row],[PROCENJENO]]-TBL_FotografijeIVideoZapisi[[#This Row],[STVARNO]])","v":""}]
[null,"Videografija",{"v":800,"d":"800 RSD"},null,{"$f":"IF(OR(TBL_FotografijeIVideoZapisi[[#This Row],[PROCENJENO]]=\"\",TBL_FotografijeIVideoZapisi[[#This Row],[STVARNO]]=\"\"),\"\",TBL_FotografijeIVideoZapisi[[#This Row],[PROCENJENO]]-TBL_FotografijeIVideoZapisi[[#This Row],[STVARNO]])","v":""}]
[null,"Dodatna štampa i albumi",{"v":500,"d":"500 RSD"},null,{"$f":"IF(OR(TBL_FotografijeIVideoZapisi[[#This Row],[PROCENJENO]]=\"\",TBL_FotografijeIVideoZapisi[[#This Row],[STVARNO]]=\"\"),\"\",TBL_FotografijeIVideoZapisi[[#This Row],[PROCENJENO]]-TBL_FotografijeIVideoZapisi[[#This Row],[STVARNO]])","v":""}]
[null,"Razni troškovi",{"v":200,"d":"200 RSD"},null,{"$f":"IF(OR(TBL_FotografijeIVideoZapisi[[#This Row],[PROCENJENO]]=\"\",TBL_FotografijeIVideoZapisi[[#This Row],[STVARNO]]=\"\"),\"\",TBL_FotografijeIVideoZapisi[[#This Row],[PROCENJENO]]-TBL_FotografijeIVideoZapisi[[#This Row],[STVARNO]])","v":""}]
[null,"UKUPNO ZA FOTOGRAFIJE I VIDEO ZAPISE",{"$f":"SUBTOTAL(109,TBL_FotografijeIVideoZapisi[PROCENJENO])","v":{"v":2500,"d":"2,500 RSD"}},{"$f":"SUBTOTAL(109,TBL_FotografijeIVideoZapisi[STVARNO])","v":{"v":0,"d":"0 RSD"}},{"$f":"TBL_FotografijeIVideoZapisi[[#Totals],[PROCENJENO]]-TBL_FotografijeIVideoZapisi[[#Totals],[STVARNO]]","v":{"v":2500,"d":"2,500 RSD"}}]
[]
[]
[null,"SUVENIRI I POKLONI","PROCENJENO","STVARNO","ODSTUPANJE"]
[null,"Pokloni dobrodošlice",{"v":700,"d":"700 RSD"},null,{"$f":"IF(OR(TBL_SuveniriIPokloni[[#This Row],[PROCENJENO]]=\"\",TBL_SuveniriIPokloni[[#This Row],[STVARNO]]=\"\"),\"\",TBL_SuveniriIPokloni[[#This Row],[PROCENJENO]]-TBL_SuveniriIPokloni[[#This Row],[STVARNO]])","v":""}]
[null,"Pokloni za žurku",{"v":200,"d":"200 RSD"},null,{"$f":"IF(OR(TBL_SuveniriIPokloni[[#This Row],[PROCENJENO]]=\"\",TBL_SuveniriIPokloni[[#This Row],[STVARNO]]=\"\"),\"\",TBL_SuveniriIPokloni[[#This Row],[PROCENJENO]]-TBL_SuveniriIPokloni[[#This Row],[STVARNO]])","v":""}]
[null,"Razni troškovi",{"v":200,"d":"200 RSD"},null,{"$f":"IF(OR(TBL_SuveniriIPokloni[[#This Row],[PROCENJENO]]=\"\",TBL_SuveniriIPokloni[[#This Row],[STVARNO]]=\"\"),\"\",TBL_SuveniriIPokloni[[#This Row],[PROCENJENO]]-TBL_SuveniriIPokloni[[#This Row],[STVARNO]])","v":""}]
[null,"UKUPNO ZA SUVENIRE I POKLONE",{"$f":"SUBTOTAL(109,TBL_SuveniriIPokloni[PROCENJENO])","v":{"v":1100,"d":"1,100 RSD"}},{"$f":"SUBTOTAL(109,TBL_SuveniriIPokloni[STVARNO])","v":{"v":0,"d":"0 RSD"}},{"$f":"TBL_SuveniriIPokloni[[#Totals],[PROCENJENO]]-TBL_SuveniriIPokloni[[#Totals],[STVARNO]]","v":{"v":1100,"d":"1,100 RSD"}}]
[]
[]
[null,"CEREMONIJA","PROCENJENO","STVARNO","ODSTUPANJE"]
[null,"Naknada za lokaciju",{"v":500,"d":"500 RSD"},null,{"$f":"IF(OR(TBL_Ceremonija[[#This Row],[PROCENJENO]]=\"\",TBL_Ceremonija[[#This Row],[STVARNO]]=\"\"),\"\",TBL_Ceremonija[[#This Row],[PROCENJENO]]-TBL_Ceremonija[[#This Row],[STVARNO]])","v":""}]
[null,"Naknada za matičara ili crkvena donacija",{"v":200,"d":"200 RSD"},null,{"$f":"IF(OR(TBL_Ceremonija[[#This Row],[PROCENJENO]]=\"\",TBL_Ceremonija[[#This Row],[STVARNO]]=\"\"),\"\",TBL_Ceremonija[[#This Row],[PROCENJENO]]-TBL_Ceremonija[[#This Row],[STVARNO]])","v":""}]
[null,"Razni troškovi",{"v":100,"d":"100 RSD"},null,{"$f":"IF(OR(TBL_Ceremonija[[#This Row],[PROCENJENO]]=\"\",TBL_Ceremonija[[#This Row],[STVARNO]]=\"\"),\"\",TBL_Ceremonija[[#This Row],[PROCENJENO]]-TBL_Ceremonija[[#This Row],[STVARNO]])","v":""}]
[null,"UKUPNO ZA CEREMONIJU",{"$f":"SUBTOTAL(109,TBL_Ceremonija[PROCENJENO])","v":{"v":800,"d":"800 RSD"}},{"$f":"SUBTOTAL(109,TBL_Ceremonija[STVARNO])","v":{"v":0,"d":"0 RSD"}},{"$f":"TBL_Ceremonija[[#Totals],[PROCENJENO]]-TBL_Ceremonija[[#Totals],[STVARNO]]","v":{"v":800,"d":"800 RSD"}}]
[]
[]
[null,"PRIBOR","PROCENJENO","STVARNO","ODSTUPANJE"]
[null,"„Zabeležite datum“ kartice",{"v":50,"d":"50 RSD"},null,{"$f":"IF(OR(TBL_Pribor[[#This Row],[PROCENJENO]]=\"\",TBL_Pribor[[#This Row],[STVARNO]]=\"\"),\"\",TBL_Pribor[[#This Row],[PROCENJENO]]-TBL_Pribor[[#This Row],[STVARNO]])","v":""}]
[null,"Pozivnice i potvrda dolaska",{"v":100,"d":"100 RSD"},null,{"$f":"IF(OR(TBL_Pribor[[#This Row],[PROCENJENO]]=\"\",TBL_Pribor[[#This Row],[STVARNO]]=\"\"),\"\",TBL_Pribor[[#This Row],[PROCENJENO]]-TBL_Pribor[[#This Row],[STVARNO]])","v":""}]
[null,"Programi",{"v":50,"d":"50 RSD"},null,{"$f":"IF(OR(TBL_Pribor[[#This Row],[PROCENJENO]]=\"\",TBL_Pribor[[#This Row],[STVARNO]]=\"\"),\"\",TBL_Pribor[[#This Row],[PROCENJENO]]-TBL_Pribor[[#This Row],[STVARNO]])","v":""}]
[null,"Kartice rasporeda sedenja i mesta",{"v":50,"d":"50 RSD"},null,{"$f":"IF(OR(TBL_Pribor[[#This Row],[PROCENJENO]]=\"\",TBL_Pribor[[#This Row],[STVARNO]]=\"\"),\"\",TBL_Pribor[[#This Row],[PROCENJENO]]-TBL_Pribor[[#This Row],[STVARNO]])","v":""}]
[null,"Karte menija",{"v":50,"d":"50 RSD"},null,{"$f":"IF(OR(TBL_Pribor[[#This Row],[PROCENJENO]]=\"\",TBL_Pribor[[#This Row],[STVARNO]]=\"\"),\"\",TBL_Pribor[[#This Row],[PROCENJENO]]-TBL_Pribor[[#This Row],[STVARNO]])","v":""}]
[null,"Zahvalnice",{"v":50,"d":"50 RSD"},null,{"$f":"IF(OR(TBL_Pribor[[#This Row],[PROCENJENO]]=\"\",TBL_Pribor[[#This Row],[STVARNO]]=\"\"),\"\",TBL_Pribor[[#This Row],[PROCENJENO]]-TBL_Pribor[[#This Row],[STVARNO]])","v":""}]
[null,"Poštarina",{"v":50,"d":"50 RSD"},null,{"$f":"IF(OR(TBL_Pribor[[#This Row],[PROCENJENO]]=\"\",TBL_Pribor[[#This Row],[STVARNO]]=\"\"),\"\",TBL_Pribor[[#This Row],[PROCENJENO]]-TBL_Pribor[[#This Row],[STVARNO]])","v":""}]
[null,"Razni troškovi",{"v":100,"d":"100 RSD"},null,{"$f":"IF(OR(TBL_Pribor[[#This Row],[PROCENJENO]]=\"\",TBL_Pribor[[#This Row],[STVARNO]]=\"\"),\"\",TBL_Pribor[[#This Row],[PROCENJENO]]-TBL_Pribor[[#This Row],[STVARNO]])","v":""}]
[null,"UKUPNO ZA PRIBOR",{"$f":"SUBTOTAL(109,TBL_Pribor[PROCENJENO])","v":{"v":500,"d":"500 RSD"}},{"$f":"SUBTOTAL(109,TBL_Pribor[STVARNO])","v":{"v":0,"d":"0 RSD"}},{"$f":"TBL_Pribor[[#Totals],[PROCENJENO]]-TBL_Pribor[[#Totals],[STVARNO]]","v":{"v":500,"d":"500 RSD"}}]
[]
[]
[null,"BURME","PROCENJENO","STVARNO","ODSTUPANJE"]
[null,"burme",{"v":1000,"d":"1,000 RSD"},null,{"$f":"IF(OR(TBL_Burme[[#This Row],[PROCENJENO]]=\"\",TBL_Burme[[#This Row],[STVARNO]]=\"\"),\"\",TBL_Burme[[#This Row],[PROCENJENO]]-TBL_Burme[[#This Row],[STVARNO]])","v":""}]
[null,"Dodaci za prstenje",{"v":100,"d":"100 RSD"},null,{"$f":"IF(OR(TBL_Burme[[#This Row],[PROCENJENO]]=\"\",TBL_Burme[[#This Row],[STVARNO]]=\"\"),\"\",TBL_Burme[[#This Row],[PROCENJENO]]-TBL_Burme[[#This Row],[STVARNO]])","v":""}]
[null,"UKUPNO ZA BURME",{"$f":"SUBTOTAL(109,TBL_Burme[PROCENJENO])","v":{"v":1100,"d":"1,100 RSD"}},{"$f":"SUBTOTAL(109,TBL_Burme[STVARNO])","v":{"v":0,"d":"0 RSD"}},{"$f":"TBL_Burme[[#Totals],[PROCENJENO]]-TBL_Burme[[#Totals],[STVARNO]]","v":{"v":1100,"d":"1,100 RSD"}}]
[]
[]
[null,"PREVOZ  ","PROCENJENO","STVARNO","ODSTUPANJE"]
[null,"Iznajmljivanje automobila za mladence",{"v":100,"d":"100 RSD"},null,{"$f":"IF(OR(TBL_Prevoz[[#This Row],[PROCENJENO]]=\"\",TBL_Prevoz[[#This Row],[STVARNO]]=\"\"),\"\",TBL_Prevoz[[#This Row],[PROCENJENO]]-TBL_Prevoz[[#This Row],[STVARNO]])","v":""}]
[null,"Iznajmljivanje automobila za goste",{"v":100,"d":"100 RSD"},null,{"$f":"IF(OR(TBL_Prevoz[[#This Row],[PROCENJENO]]=\"\",TBL_Prevoz[[#This Row],[STVARNO]]=\"\"),\"\",TBL_Prevoz[[#This Row],[PROCENJENO]]-TBL_Prevoz[[#This Row],[STVARNO]])","v":""}]
[null,"Prevoz za goste koji žive van grada",{"v":100,"d":"100 RSD"},null,{"$f":"IF(OR(TBL_Prevoz[[#This Row],[PROCENJENO]]=\"\",TBL_Prevoz[[#This Row],[STVARNO]]=\"\"),\"\",TBL_Prevoz[[#This Row],[PROCENJENO]]-TBL_Prevoz[[#This Row],[STVARNO]])","v":""}]
[null,"Parking usluga",{"v":50,"d":"50 RSD"},null,{"$f":"IF(OR(TBL_Prevoz[[#This Row],[PROCENJENO]]=\"\",TBL_Prevoz[[#This Row],[STVARNO]]=\"\"),\"\",TBL_Prevoz[[#This Row],[PROCENJENO]]-TBL_Prevoz[[#This Row],[STVARNO]])","v":""}]
[null,"Razni troškovi",{"v":100,"d":"100 RSD"},null,{"$f":"IF(OR(TBL_Prevoz[[#This Row],[PROCENJENO]]=\"\",TBL_Prevoz[[#This Row],[STVARNO]]=\"\"),\"\",TBL_Prevoz[[#This Row],[PROCENJENO]]-TBL_Prevoz[[#This Row],[STVARNO]])","v":""}]
[null,"UKUPNO ZA PREVOZ",{"$f":"SUBTOTAL(109,TBL_Prevoz[PROCENJENO])","v":{"v":450,"d":"450 RSD"}},{"$f":"SUBTOTAL(109,TBL_Prevoz[STVARNO])","v":{"v":0,"d":"0 RSD"}},{"$f":"TBL_Prevoz[[#Totals],[PROCENJENO]]-TBL_Prevoz[[#Totals],[STVARNO]]","v":{"v":450,"d":"450 RSD"}}]